fUST/lending_fUST_20250601
["ID","MTS","AMOUNT","RATE_DAILY","PERIOD"]
[363448983,1748725846956,-562.21,0.00019726,2]
[363448985,1748725846965,-534.15,0.00019726,2]
[363448987,1748725846975,-389.103,0.00019743,2]
[363448989,1748725846985,-178.70165561,0.00019743,2]
[363448991,1748725846994,-500.0,0.00019773,2]
[363448993,1748725847003,-500.0,0.00019773,2]
[363448995,1748725847013,-538.99063035,0.00019934,2]
[363448997,1748725847022,-652.27917079,0.00019936,2]
[363448999,1748725847032,-800.0,0.00019964,2]
[363449001,1748725847042,-500.0,0.00019999,2]
[363449003,1748725847051,-1407.36,0.0002,2]
[363449005,1748725847061,-742.92,0.0002,2]
[363449007,1748725847070,-530.36,0.0002,2]
[363449009,1748725847080,-562.0,0.0002,2]
[363449011,1748725847090,-1161.68,0.0002,2]
[363449012,1748725847099,-1271.53,0.0002,2]
[363449014,1748725847109,-473.2,0.0002,2]
[363449016,1748725847118,-626.08,0.0002,2]
[363449018,1748725847129,-430.0,0.0002,2]
[363449020,1748725847139,-608.93,0.0002,2]
[363449022,1748725847148,-1322.22,0.0002,2]
[363449024,1748725847158,-280.63,0.0002,2]
[363449026,1748725847168,-430.0,0.0002,2]
[363449028,1748725847178,-558.51,0.0002,2]
[363449030,1748725847189,-1033.62,0.0002,2]
[363449040,1748725847292,-563.31,0.0002,2]
[363449042,1748725847304,-550.44,0.0002,2]
[363449044,1748725847315,-1043.78,0.0002,2]
[363449046,1748725847326,-864.97,0.0002,2]
[363449048,1748725847336,-430.0,0.0002,2]
[363449050,1748725847346,-868.88,0.0002,2]
[363449052,1748725847356,-600.37,0.0002,2]
[363449054,1748725847365,-562.21,0.0002,2]
[363449056,1748725847375,-534.15,0.0002,2]
[363449058,1748725847386,-652.27917079,0.00020007,2]
[363449060,1748725847396,-622.45760105,0.00020048,2]
[363449062,1748725847406,-1200.0,0.00020048,2]
[363449064,1748725847416,-634.674702,0.00020187,2]
[363449066,1748725847426,-538.99063035,0.0002021,2]
[363449068,1748725847436,-500.0,0.00020246,2]
[363449070,1748725847446,-151.0,0.00020246,2]
[363449072,1748725847456,-1407.36,0.00020273,2]
[363449074,1748725847465,-742.92,0.00020273,2]
[363449075,1748725847475,-530.36,0.00020273,2]
[363449077,1748725847484,-562.0,0.00020273,2]
[363449079,1748725847494,-1161.68,0.00020273,2]
[363449081,1748725847504,-1271.53,0.00020273,2]
[363449083,1748725847514,-473.2,0.00020273,2]
[363449086,1748725847524,-626.08,0.00020273,2]
[363449088,1748725847535,-430.0,0.00020273,2]
[363449089,1748725847545,-608.93,0.00020273,2]
[363449091,1748725847554,-1322.22,0.00020273,2]
[363449093,1748725847563,-430.0,0.00020273,2]
[363449095,1748725847573,-558.51,0.00020273,2]
[363449097,1748725847583,-1033.62,0.00020273,2]
[363449099,1748725847593,-563.31,0.00020273,2]
[363449101,1748725847603,-550.44,0.00020273,2]
[363449103,1748725847612,-1043.78,0.00020273,2]
[363449105,1748725847622,-864.97,0.00020273,2]
[363449107,1748725847633,-430.0,0.00020273,2]
[363449108,1748725847642,-868.88,0.00020273,2]
[363449110,1748725847652,-600.37,0.00020273,2]
[363449112,1748725847663,-562.21,0.00020273,2]
[363449114,1748725847673,-534.15,0.00020273,2]
[363449116,1748725847683,-500.0,0.00020273,2]
[363449118,1748725847693,-240.0,0.00020274,3]
[363449120,1748725847702,-500.0,0.00020301,2]
[363449121,1748725847712,-364.3142842,0.00020301,2]
[363449123,1748725847722,-728.6285684,0.00020301,2]
[363449125,1748725847732,-1000.0,0.00020321,2]
[363449127,1748725847741,-1000.0,0.00020321,2]
[363449129,1748725847751,-198.60315693,0.00020328,2]
[363449131,1748725847761,-652.27917079,0.0002033,2]
[363449133,1748725847770,-538.99063035,0.00020486,3]
[363449135,1748725847780,-500.0,0.00020492,2]
[363449137,1748725847789,-151.0,0.00020492,2]
[363449138,1748725847800,-208.48728359,0.00020492,2]
[363449139,1748725847810,-500.0,0.00020519,2]
[363449141,1748725847819,-151.0,0.00020519,2]
[363449143,1748725847828,-15125.99,0.00020537,2]
[363449145,1748725847838,-500.0,0.00020547,2]
[363449147,1748725847847,-151.0,0.00020547,2]
[363449149,1748725847858,-1407.36,0.00020547,2]
[363449151,1748725847867,-742.92,0.00020547,2]
[363449153,1748725847876,-530.36,0.00020547,2]
[363449154,1748725847887,-562.0,0.00020547,2]
[363449155,1748725847896,-1161.68,0.00020547,2]
[363449156,1748725847906,-1271.53,0.00020547,2]
[363449157,1748725847916,-473.2,0.00020547,2]
[363449158,1748725847926,-626.08,0.00020547,2]
[363449159,1748725847936,-217.51,0.00020547,2]
[363449160,1748725847946,-608.93,0.00020547,2]
[363449161,1748725847955,-1322.22,0.00020547,2]
[363449162,1748725847965,-430.0,0.00020547,2]
[363449163,1748725847974,-558.51,0.00020547,2]
[363449164,1748725847984,-1033.62,0.00020547,2]
[363449165,1748725847994,-563.31,0.00020547,2]
[363449166,1748725848004,-550.44,0.00020547,2]
[363449167,1748725848013,-1043.78,0.00020547,2]
[363449168,1748725848023,-864.97,0.00020547,2]
[363449169,1748725848032,-430.0,0.00020547,2]
[363449170,1748725848042,-868.88,0.00020547,2]
[363449171,1748725848052,-600.37,0.00020547,2]
[363449172,1748725848061,-562.21,0.00020547,2]
[363449173,1748725848071,-534.15,0.00020547,2]
[363449174,1748725848081,-158.3971896,0.00020548,2]
[363449175,1748725848091,-572.078714,0.00020548,2]
[363449176,1748725848101,-652.2791708,0.00020574,2]
[363449177,1748725848111,-500.0,0.00020574,2]
[363449178,1748725848121,-202.57043117,0.00020574,2]
[363449179,1748725848131,-1800.0,0.00020596,2]
[363449180,1748725848141,-9453.5,0.000206,2]
[363449181,1748725848150,-500.0,0.00020602,2]
[363449182,1748725848161,-500.0,0.00020629,2]
[363449183,1748725848171,-500.0,0.00020656,2]
[363449184,1748725848180,-500.0,0.00020684,2]
[363449185,1748725848190,-500.0,0.00020711,2]
[363449186,1748725848200,-364.59337095,0.00020717,2]
[363449187,1748725848210,-546.09610863,0.00020739,2]
[363449188,1748725848219,-538.99063035,0.00020762,3]
[363449189,1748725848231,-1407.36,0.00020821,2]
[363449190,1748725848244,-742.92,0.00020821,2]
[363449191,1748725848253,-530.36,0.00020821,2]
[363449192,1748725848263,-562.0,0.00020821,2]
[363449193,1748725848272,-1161.68,0.00020821,2]
[363449194,1748725848283,-1271.53,0.00020821,2]
[363449195,1748725848293,-473.2,0.00020821,2]
[363449196,1748725848303,-626.08,0.00020821,2]
[363449197,1748725848313,-608.93,0.00020821,2]
[363449198,1748725848324,-1322.22,0.00020821,2]
[363449199,1748725848333,-430.0,0.00020821,2]
[363449200,1748725848343,-558.51,0.00020821,2]
[363449201,1748725848353,-1033.62,0.00020821,2]
[363449202,1748725848362,-563.31,0.00020821,2]
[363449203,1748725848372,-550.44,0.00020821,2]
[363449204,1748725848382,-1043.78,0.00020821,2]
[363449205,1748725848391,-864.97,0.00020821,2]
[363449206,1748725848401,-430.0,0.00020821,2]
[363449207,1748725848411,-868.88,0.00020821,2]
[363449208,1748725848421,-600.37,0.00020821,2]
[363449209,1748725848431,-562.21,0.00020821,2]
[363449210,1748725848440,-534.15,0.00020821,2]
[363449211,1748725848449,-316.9162468,0.00020849,2]
[363449212,1748725848459,-153.0,0.00020849,2]
[363449213,1748725848468,-153.0,0.00020849,2]
[363449214,1748725848478,-306.0,0.00020849,2]
[363449215,1748725848488,-153.0,0.00020849,2]
[363449216,1748725848498,-309.217942,0.00020849,2]
[363449217,1748725848507,-153.0,0.00020849,2]
[363449218,1748725848517,-153.0,0.00020849,2]
[363449219,1748725848527,-153.0,0.00020849,2]
[363449220,1748725848536,-153.0,0.00020849,2]
[363449221,1748725848547,-1500.0,0.00020869,2]
[363449222,1748725848557,-1500.0,0.00020869,2]
[363449223,1748725848567,-150.325,0.00020869,2]
[363449224,1748725848576,-150.0,0.00020869,2]
[363449225,1748725848586,-150.0,0.00020869,2]
[363449226,1748725848595,-962.0,0.00020869,2]
[363449227,1748725848605,-2227.0,0.00020869,2]
[363449228,1748725848615,-708.0,0.00020869,2]
[363449229,1748725848625,-326247.58518921,0.00020899,2]
[363449230,1748725848642,-5113.02886269,0.00020899,2]
[363449231,1748725848656,-3122.1875981,0.00020899,2]
[363449232,1748725848667,-4592.81162164,0.00020899,2]
[363449233,1748725848678,-10481.0,0.00020899,2]
[363449235,1748725848690,-15812.93631836,0.00020899,2]
[363449237,1748725848700,-1022.15868164,0.000209,2]
[363449239,1748725848746,-516.02723809,0.00016438,2]
[363449240,1748725848756,-3189.98397005,0.000209,2]
[363449241,1748725848969,-430.0,0.00016438,2]
[363449242,1748725848979,-430.0,0.00016438,2]
[363449243,1748725848989,-430.0,0.00016438,2]
[363449244,1748725848999,-430.0,0.00016712,2]
[363449246,1748725849009,-162.11901457,0.00016712,2]
[363449247,1748725849021,-267.88098543,0.00016712,2]
[363449249,1748725849031,-152.11901457,0.00016986,2]
[363449254,1748725849073,-450.0,0.00016438,2]
[363449256,1748725849083,-277.88098543,0.00016986,2]
[363449258,1748725849093,-507.26,0.00016986,2]
[363449260,1748725849102,-430.0,0.0001726,2]
[363449262,1748725849112,-430.0,0.00017534,2]
[363449264,1748725849121,-430.0,0.00017808,2]
[363449266,1748725849132,-544.11,0.00018082,2]
[363449268,1748725849141,-1338.62078813,0.000209,2]
[363449270,1748725849153,-10585.41427136,0.000209,2]
[363449272,1748725849163,-241.56708286,0.000209,2]
[363449274,1748725849172,-500.0,0.00020924,2]
[363449276,1748725849181,-500.0,0.00020957,2]
[363449278,1748725849191,-207.4,0.00021007,2]
[363449280,1748725849201,-300.0,0.00021007,2]
[363449282,1748725849211,-300.0,0.00021007,2]
[363449284,1748725849221,-300.0,0.00021007,2]
[363449286,1748725849232,-300.0,0.00021007,2]
[363449288,1748725849243,-300.0,0.00021007,2]
[363449298,1748725849253,-300.0,0.00021007,2]
[363449302,1748725849361,-300.0,0.00021007,2]
[363449304,1748725849372,-300.0,0.00021007,2]
[363449306,1748725849383,-300.0,0.00021007,2]
[363449308,1748725849393,-5000.0,0.00021007,2]
[363449310,1748725849404,-300.0,0.00021007,2]
[363449312,1748725849413,-300.0,0.00021007,2]
[363449314,1748725849423,-878.37164878,0.00021007,2]
[363449316,1748725849436,-1939.43463383,0.00021007,2]
[363449318,1748725849446,-300.0,0.00021007,2]
[363449320,1748725849456,-300.0,0.00021007,2]
[363449322,1748725849466,-300.0,0.00021007,2]
[363449324,1748725849476,-300.0,0.00021007,2]
[363449326,1748725849486,-538.99063035,0.00021038,4]
[363449328,1748725849497,-800.0,0.0002106,2]
[363449330,1748725849506,-530.36,0.00021095,2]
[363449332,1748725849516,-562.0,0.00021095,2]
[363449334,1748725849526,-1161.68,0.00021095,2]
[363449336,1748725849536,-1271.53,0.00021095,2]
[363449338,1748725849546,-473.2,0.00021095,2]
[363449339,1748725849557,-626.08,0.00021095,2]
[363449341,1748725849568,-608.93,0.00021095,2]
[363449344,1748725849578,-1322.22,0.00021095,2]
[363449346,1748725849588,-430.0,0.00021095,2]
[363449348,1748725849599,-558.51,0.00021095,2]
[363449350,1748725849609,-1033.62,0.00021095,2]
[363449351,1748725849619,-563.31,0.00021095,2]
[363449354,1748725849629,-550.44,0.00021095,2]
[363449356,1748725849641,-1043.78,0.00021095,2]
[363449357,1748725849652,-864.97,0.00021095,2]
[363449360,1748725849663,-430.0,0.00021095,2]
[363449361,1748725849673,-868.88,0.00021095,2]
[363449363,1748725849682,-600.37,0.00021095,2]
[363449365,1748725849692,-562.21,0.00021095,2]
[363449367,1748725849702,-534.15,0.00021095,2]
[363449369,1748725849712,-984.09246953,0.00021144,2]
[363449371,1748725849722,-538.99063035,0.00021314,5]
[363449373,1748725849732,-530.36,0.00021369,2]
[363449375,1748725849741,-562.0,0.00021369,2]
[363449377,1748725849751,-1161.68,0.00021369,2]
[363449379,1748725849761,-776.98945009,0.00021369,2]
[363450345,1748725863402,173.18797083,6.8e-07,2]
[363450347,1748725872097,606.466939,0.00013699,2]
[363450359,1748726581160,4655.0,0.00024658,120]
[363450376,1748726828091,-784.56232894,0.00015533,2]
[363450377,1748726833080,-171.25764402,0.00015533,2]
[363450378,1748726833102,-166.3572466,0.00015849,2]
[363450379,1748726833123,-414.1352946,0.00016054,2]
[363450380,1748726833143,-171.40610971,0.00016338,2]
[363450381,1748726833166,-52.00831338,0.00016437,2]
[363450385,1748726873287,576.143592,0.00013699,2]
[363450386,1748726892775,411.77713436,0.00010618,2]
[363450592,1748727038142,-2107.95229531,0.00015529,2]
[363450593,1748727038152,-1411.49397385,0.00015686,2]
[363450607,1748727038308,-272.5430213,0.00015686,2]
[363450846,1748727040599,-539.709733,0.00015686,2]
[363450848,1748727040611,-834.61601925,0.00015686,2]
[363450851,1748727040621,-300.0,0.00016436,2]
[363450852,1748727040631,-220.66148968,0.00016437,2]
[363450854,1748727040642,-639.50710714,0.00016437,2]
[363450856,1748727040653,-500.0,0.00016437,2]
[363450858,1748727040663,-300.0,0.00016437,2]
[363450860,1748727040673,-430.0,0.00016438,2]
[363450862,1748727040683,-430.0,0.00016438,2]
[363450865,1748727040692,-430.0,0.00016438,2]
[363450867,1748727040701,-500.0,0.00016438,2]
[363450868,1748727040711,-430.0,0.00016438,2]
[363450870,1748727040721,-220.0,0.00016438,2]
[363450872,1748727040731,-500.0,0.00016438,2]
[363450874,1748727040741,-430.0,0.00016438,2]
[363450878,1748727040750,-390.0,0.00016438,2]
[363450880,1748727040760,-430.0,0.00016438,2]
[363450883,1748727040770,-430.0,0.00016438,2]
[363450884,1748727040780,-450.0,0.00016438,2]
[363450886,1748727040789,-430.0,0.00016438,2]
[363450888,1748727040799,-430.0,0.00016438,2]
[363450891,1748727040809,-430.0,0.00016438,2]
[363450893,1748727040819,-521.75,0.00016438,2]
[363450895,1748727040828,-430.0,0.00016438,2]
[363450896,1748727040838,-430.0,0.00016438,2]
[363450897,1748727040847,-507.68536224,0.00016438,2]
[363450898,1748727040857,-470.0,0.00016438,2]
[363450899,1748727040866,-259.49775045,0.00016438,2]
[363450900,1748727040876,-307.28242245,0.00016438,2]
[363451109,1748727043200,-122.71757755,0.00016438,2]
[363451111,1748727043210,-430.0,0.00016438,2]
[363451113,1748727043219,-430.0,0.00016438,2]
[363451115,1748727043229,-430.0,0.00016438,2]
[363451117,1748727043238,-430.0,0.00016438,2]
[363451119,1748727043248,-430.0,0.00016438,2]
[363451121,1748727043257,-430.0,0.00016438,2]
[363451123,1748727043267,-401.9812149,0.00016438,2]
[363451125,1748727043276,-430.0,0.00016438,2]
[363451127,1748727043286,-430.0,0.00016438,2]
[363451129,1748727043296,-243.3834259,0.00016438,2]
[363451132,1748727043308,-550.25098489,0.00016438,2]
[363451135,1748727043319,-20.48558921,0.00016438,2]
[363451138,1748727043329,-430.0,0.00016438,2]
[363451141,1748727043338,-430.0,0.00016438,2]
[363451144,1748727043347,-430.0,0.00016438,2]
[363451147,1748727043356,-430.0,0.00016438,2]
[363451150,1748727043366,-430.0,0.00016438,2]
[363451153,1748727043376,-430.0,0.00016438,2]
[363451155,1748727043386,-430.0,0.00016438,2]
[363451157,1748727043395,-430.0,0.00016438,2]
[363451159,1748727043405,-430.0,0.00016438,2]
[363451161,1748727043415,-430.0,0.00016438,2]
[363451163,1748727043424,-430.0,0.00016438,2]
[363451165,1748727043434,-430.0,0.00016438,2]
[363451167,1748727043444,-477.1,0.00016438,2]
[363451169,1748727043453,-430.0,0.00016438,2]
[363451171,1748727043463,-430.0,0.00016438,2]
[363451173,1748727043472,-430.0,0.00016438,2]
[363451175,1748727043481,-430.0,0.00016438,2]
[363451177,1748727043492,-430.0,0.00016438,2]
[363451179,1748727043501,-430.0,0.00016438,2]
[363451181,1748727043510,-430.0,0.00016438,2]
[363451183,1748727043520,-430.0,0.00016438,2]
[363451185,1748727043530,-430.0,0.00016438,2]
[363451187,1748727043541,-430.0,0.00016438,2]
[363451189,1748727043550,-430.0,0.00016438,2]
[363451191,1748727043560,-430.0,0.00016438,2]
[363451193,1748727043570,-440.49,0.00016438,2]
[363451195,1748727043580,-430.0,0.00016438,2]
[363451197,1748727043589,-430.0,0.00016438,2]
[363451199,1748727043599,-430.0,0.00016438,2]
[363451201,1748727043609,-430.0,0.00016438,2]
[363451203,1748727043618,-446.13,0.00016438,2]
[363451205,1748727043628,-430.0,0.00016438,2]
[363451207,1748727043637,-430.0,0.00016438,2]
[363451209,1748727043647,-500.1,0.00016438,2]
[363451211,1748727043657,-430.0,0.00016438,2]
[363451213,1748727043666,-430.0,0.00016438,2]
[363451215,1748727043676,-430.0,0.00016438,2]
[363451217,1748727043686,-430.0,0.00016438,2]
[363451220,1748727043697,-430.0,0.00016438,2]
[363451221,1748727043707,-430.0,0.00016438,2]
[363451224,1748727043716,-430.0,0.00016438,2]
[363451226,1748727043726,-430.0,0.00016438,2]
[363451228,1748727043735,-430.0,0.00016438,2]
[363451230,1748727043745,-430.0,0.00016438,2]
[363451232,1748727043754,-430.0,0.00016438,2]
[363451234,1748727043763,-430.0,0.00016438,2]
[363451236,1748727043773,-430.0,0.00016438,2]
[363451255,1748727043948,-430.0,0.00016438,2]
[363451257,1748727043959,-430.0,0.00016438,2]
[363451259,1748727043970,-175.97173378,0.00016612,2]
[363451261,1748727043979,-500.0,0.00016711,2]
[363451263,1748727043989,-500.0,0.00016711,2]
[363451265,1748727043998,-451.91747606,0.00016711,2]
[363451267,1748727044007,-500.0,0.00016711,2]
[363451269,1748727044017,-232.76915908,0.00016711,2]
[363451271,1748727044026,-500.0,0.00016711,2]
[363451273,1748727044037,-500.0,0.00016711,2]
[363451275,1748727044046,-500.0,0.00016711,2]
[363451277,1748727044057,-500.0,0.00016711,2]
[363451280,1748727044068,-500.0,0.00016711,2]
[363451282,1748727044078,-500.0,0.00016711,2]
[363451284,1748727044087,-500.0,0.00016711,2]
[363451286,1748727044097,-500.0,0.00016711,2]
[363451288,1748727044106,-430.0,0.00016712,2]
[363451290,1748727044116,-338.05,0.00016712,2]
[363451292,1748727044126,-430.0,0.00016712,2]
[363451294,1748727044135,-430.0,0.00016712,2]
[363451296,1748727044145,-814.12,0.00016712,2]
[363451298,1748727044156,-430.0,0.00016712,2]
[363451300,1748727044165,-430.0,0.00016712,2]
[363451302,1748727044175,-430.0,0.00016712,2]
[363451304,1748727044185,-216.88,0.00016712,2]
[363451306,1748727044194,-430.0,0.00016712,2]
[363451308,1748727044203,-430.0,0.00016712,2]
[363451310,1748727044212,-430.0,0.00016712,2]
[363451312,1748727044222,-430.0,0.00016712,2]
[363451314,1748727044232,-192.46558617,0.00016712,2]
[363451316,1748727044245,-237.53441383,0.00016712,2]
[363451318,1748727044254,-430.0,0.00016712,2]
[363451320,1748727044263,-477.1,0.00016712,2]
[363451322,1748727044273,-176.89,0.00016712,2]
[363451324,1748727044282,-300.13,0.00016712,2]
[363451326,1748727044291,-404.78,0.00016712,2]
[363451328,1748727044301,-69.16558617,0.00016712,2]
[363451526,1748727046499,-430.0,0.00016438,2]
[363451528,1748727046509,-360.83441383,0.00016712,2]
[363451530,1748727046520,-373.50994499,0.00016712,2]
[363451532,1748727046532,-56.49005501,0.00016712,2]
[363451534,1748727046542,-430.0,0.00016712,2]
[363451536,1748727046552,-216.19,0.00016712,2]
[363451538,1748727046561,-71.11994499,0.00016712,2]
[363451540,1748727046573,-358.88005501,0.00016712,2]
[363451542,1748727046582,-296.22,0.00016712,2]
[363451544,1748727046591,-346.87,0.00016712,2]
[363451546,1748727046601,-430.0,0.00016712,2]
[363451548,1748727046610,-446.13,0.00016712,2]
[363451549,1748727046619,-430.0,0.00016712,2]
[363451551,1748727046629,-500.1,0.00016712,2]
[363451553,1748727046639,-430.0,0.00016712,2]
[363451555,1748727046648,-430.0,0.00016712,2]
[363451557,1748727046658,-355.01,0.00016712,2]
[363451559,1748727046668,-224.31279233,0.00016712,2]
[363451561,1748727046680,-225.68720767,0.00016712,2]
[363451563,1748727046691,-190.51,0.00016712,2]
[363451565,1748727046701,-430.0,0.00016712,2]
[363451567,1748727046711,-430.0,0.00016712,2]
[363451569,1748727046720,-430.0,0.00016712,2]
[363451570,1748727046730,-430.0,0.00016712,2]
[363451572,1748727046740,-430.0,0.00016712,2]
[363451574,1748727046750,-430.0,0.00016712,2]
[363451576,1748727046760,-430.0,0.00016712,2]
[363451578,1748727046770,-430.0,0.00016712,2]
[363451580,1748727046780,-500.0,0.00016985,2]
[363451582,1748727046790,-500.0,0.00016985,2]
[363451584,1748727046799,-216.29,0.00016986,2]
[363451586,1748727046809,-430.0,0.00016986,2]
[363451587,1748727046818,-814.12,0.00016986,2]
[363451589,1748727046828,-430.0,0.00016986,2]
[363451591,1748727046837,-430.0,0.00016986,2]
[363451593,1748727046846,-430.0,0.00016986,2]
[363451595,1748727046856,-305.78,0.00016986,2]
[363451597,1748727046866,-331.19,0.00016986,2]
[363451599,1748727046875,-430.0,0.00016986,2]
[363451600,1748727046884,-430.0,0.00016986,2]
[363451602,1748727046898,-430.0,0.00016986,2]
[363451604,1748727046907,-430.0,0.00016986,2]
[363451606,1748727046917,-477.1,0.00016986,2]
[363451608,1748727046927,-430.0,0.00016986,2]
[363451610,1748727046937,-560.38077953,0.00016986,2]
[363451612,1748727046947,-158.28,0.00016986,2]
[363451614,1748727046956,-430.0,0.00016986,2]
[363451616,1748727046966,-413.78,0.00016986,2]
[363451618,1748727046975,-446.13,0.00016986,2]
[363451620,1748727046986,-430.0,0.00016986,2]
[363451621,1748727046995,-500.1,0.00016986,2]
[363451623,1748727047005,-430.0,0.00016986,2]
[363451625,1748727047014,-430.0,0.00016986,2]
[363451627,1748727047023,-430.0,0.00016986,2]
[363451629,1748727047033,-430.0,0.00016986,2]
[363451631,1748727047043,-430.0,0.00016986,2]
[363451633,1748727047052,-430.0,0.00016986,2]
[363451635,1748727047062,-468.02,0.00016986,2]
[363451637,1748727047071,-260.29999504,0.00016986,2]
[363451639,1748727047087,-169.70000496,0.00016986,2]
[363451641,1748727047096,-430.0,0.00016986,2]
[363451643,1748727047105,-240.2594158,0.0001726,2]
[363452739,1748727065086,178.39544364,6.8e-07,2]
[363452740,1748727065187,178.39544364,6.8e-07,2]
[363452743,1748727365863,183.79749784,6.8e-07,2]
[363452744,1748727365982,183.79749784,6.8e-07,2]
[363452745,1748727366121,183.79749784,6.8e-07,2]
[363452749,1748727886616,579.070147,0.00013699,2]
[363452752,1748727942647,502.76699825,0.00015,2]
[363452811,1748728232549,-2646.6090085,0.0001542,2]
[363452813,1748728232559,-1634.8183757,0.00015506,2]
[363452815,1748728232568,-1653.5834787,0.0001556,2]
[363452817,1748728232578,-1200.0,0.00016433,2]
[363452819,1748728232588,-300.0,0.00016434,2]
[363452821,1748728232597,-283.0,0.00016434,2]
[363452823,1748728232606,-300.0,0.00016434,2]
[363452825,1748728232615,-300.0,0.00016434,2]
[363452827,1748728232624,-300.0,0.00016434,2]
[363452830,1748728232634,-11386.37516274,0.00016437,2]
[363452832,1748728232649,-357.43472352,0.00016437,2]
[363452834,1748728232658,-408.6179853,0.00016437,2]
[363452836,1748728232668,-500.0,0.00016437,2]
[363452838,1748728232677,-500.0,0.00016437,2]
[363452840,1748728232687,-500.0,0.00016437,2]
[363452842,1748728232696,-500.0,0.00016437,2]
[363452845,1748728232706,-500.0,0.00016437,2]
[363452849,1748728232715,-500.0,0.00016437,2]
[363452852,1748728232725,-500.0,0.00016437,2]
[363452855,1748728232734,-500.0,0.00016437,2]
[363452858,1748728232743,-500.0,0.00016437,2]
[363452861,1748728232752,-500.0,0.00016437,2]
[363452864,1748728232762,-500.0,0.00016437,2]
[363452867,1748728232772,-499.11201738,0.00016437,2]
[363452870,1748728232781,-500.0,0.00016437,2]
[363452873,1748728232791,-500.0,0.00016437,2]
[363452876,1748728232800,-500.0,0.00016437,2]
[363452878,1748728232809,-550.0,0.00016437,2]
[363452880,1748728232819,-291.64743689,0.00016438,2]
[363452882,1748728232828,-430.0,0.00016438,2]
[363452884,1748728232837,-430.0,0.00016438,2]
[363452886,1748728232846,-430.0,0.00016438,2]
[363452888,1748728232856,-431.60979836,0.00016438,2]
[363452890,1748728232865,-430.0,0.00016438,2]
[363452892,1748728232875,-430.0,0.00016438,2]
[363452894,1748728232884,-430.0,0.00016438,2]
[363452896,1748728232894,-370.0,0.00016438,2]
[363452898,1748728232903,-430.0,0.00016438,2]
[363452899,1748728232912,-430.0,0.00016438,2]
[363452900,1748728232921,-430.0,0.00016438,2]
[363452901,1748728232930,-430.0,0.00016438,2]
[363452902,1748728232940,-430.0,0.00016438,2]
[363452903,1748728232949,-430.0,0.00016438,2]
[363452904,1748728232958,-450.0,0.00016438,2]
[363452905,1748728232967,-430.0,0.00016438,2]
[363452906,1748728232977,-390.0,0.00016438,2]
[363452907,1748728232986,-430.0,0.00016438,2]
[363452908,1748728232995,-500.0,0.00016438,2]
[363452909,1748728233006,-300.0,0.00016438,2]
[363452910,1748728233015,-430.0,0.00016438,2]
[363452911,1748728233024,-430.0,0.00016438,2]
[363452912,1748728233033,-430.0,0.00016438,2]
[363452913,1748728233042,-175.37416722,0.00016438,2]
[363452914,1748728233052,-430.0,0.00016438,2]
[363452915,1748728233061,-400.92467331,0.00016438,2]
[363452916,1748728233070,-430.0,0.00016438,2]